fUST/lending_fUST_20250407
["ID","MTS","AMOUNT","RATE_DAILY","PERIOD"]
[357335294,1744007523130,-200.0,0.00060647,120]
[357335295,1744007523139,-200.0,0.0006067,120]
[357335296,1744007523149,-401.0,0.00060721,120]
[357335297,1744007523159,-150.0,0.00061,120]
[357335298,1744007523168,-200.0,0.0006101,120]
[357335299,1744007523178,-200.0,0.0006195,120]
[357335300,1744007523187,-157.809,0.00062032,120]
[357335301,1744007523198,-688.251929,0.00062495,120]
[357335302,1744007523207,-200.0,0.00062536,120]
[357335303,1744007523217,-169.0,0.00063,120]
[357335304,1744007523227,-248.0,0.00063,120]
[357335305,1744007523237,-401.0,0.00063721,120]
[357335306,1744007523247,-156.42529217,0.00064,120]
[357335307,1744007523256,-200.0,0.00064,120]
[357335308,1744007523266,-4142.34230092,0.00064,120]
[357335309,1744007523276,-500000.0,0.0006444,30]
[357335310,1744007523286,-331.37409314,0.00064888,120]
[357335311,1744007523296,-1000.0,0.0006498,120]
[357335312,1744007523306,-4000.0,0.00065753,14]
[357335313,1744007523316,-379.54102215,0.00066,120]
[357335314,1744007523327,-401.0,0.00066721,120]
[357335315,1744007523337,-2000.0,0.00066745,2]
[357335316,1744007523347,-2000.0,0.00066745,15]
[357335317,1744007523357,-2000.0,0.00066745,15]
[357335318,1744007523367,-1372.10647498,0.00066845,14]
[357335319,1744007523377,-688.251929,0.00067816,120]
[357335320,1744007523387,-200.0,0.00068,120]
[357335321,1744007523396,-480.0,0.00068492,120]
[357335322,1744007523406,-480.0,0.00068492,120]
[357335323,1744007523415,-151.9750334,0.00068493,120]
[357335324,1744007523425,-151.9750334,0.00068493,120]
[357335325,1744007523434,-151.9750334,0.00068493,120]
[357335326,1744007523443,-151.9750334,0.00068493,120]
[357335327,1744007523453,-151.9750334,0.00068493,120]
[357335328,1744007523463,-151.9750334,0.00068493,120]
[357335329,1744007523472,-151.9750334,0.00068493,120]
[357335330,1744007523482,-151.9750334,0.00068493,120]
[357335331,1744007523492,-151.9750334,0.00068493,120]
[357335332,1744007523502,-151.9750334,0.00068493,120]
[357335333,1744007523511,-151.9750334,0.00068493,120]
[357335334,1744007523521,-151.97,0.00068493,120]
[357335335,1744007523530,-212.76504677,0.00068493,120]
[357335336,1744007523540,-212.76504677,0.00068493,120]
[357335337,1744007523549,-212.76504677,0.00068493,120]
[357335338,1744007523559,-212.76504677,0.00068493,120]
[357335339,1744007523568,-212.76504677,0.00068493,120]
[357335340,1744007523579,-212.76504677,0.00068493,120]
[357335341,1744007523588,-212.76504677,0.00068493,120]
[357335342,1744007523597,-212.76504677,0.00068493,120]
[357335343,1744007523608,-212.76504677,0.00068493,120]
[357335344,1744007523617,-212.76504677,0.00068493,120]
[357335345,1744007523626,-212.76504677,0.00068493,120]
[357335346,1744007523636,-212.76504677,0.00068493,120]
[357335347,1744007523645,-212.76504677,0.00068493,120]
[357335348,1744007523654,-212.76504677,0.00068493,120]
[357335349,1744007523665,-212.76504677,0.00068493,120]
[357335350,1744007523675,-212.76504677,0.00068493,120]
[357335351,1744007523687,-212.76504677,0.00068493,120]
[357335352,1744007523697,-212.76504677,0.00068493,120]
[357335353,1744007523707,-212.76504677,0.00068493,120]
[357335354,1744007523716,-212.76,0.00068493,120]
[357335355,1744007523726,-260.76066759,0.00068493,120]
[357335356,1744007523735,-260.76066759,0.00068493,120]
[357335357,1744007523744,-260.76066759,0.00068493,120]
[357335358,1744007523756,-260.76066759,0.00068493,120]
[357335359,1744007523766,-260.76066759,0.00068493,120]
[357335360,1744007523775,-260.76066759,0.00068493,120]
[357335361,1744007523785,-260.76066759,0.00068493,120]
[357335362,1744007523795,-260.76066759,0.00068493,120]
[357335363,1744007523805,-260.76066759,0.00068493,120]
[357335364,1744007523815,-260.76066759,0.00068493,120]
[357335365,1744007523828,-260.76066759,0.00068493,120]
[357335366,1744007523837,-260.76066759,0.00068493,120]
[357335367,1744007523849,-260.76066759,0.00068493,120]
[357335368,1744007523859,-260.76066759,0.00068493,120]
[357335369,1744007523869,-260.76066759,0.00068493,120]
[357335370,1744007523878,-260.76066759,0.00068493,120]
[357335371,1744007523888,-260.76066759,0.00068493,120]
[357335372,1744007523898,-260.76066759,0.00068493,120]
[357335373,1744007523907,-260.76066759,0.00068493,120]
[357335374,1744007523918,-260.76,0.00068493,120]
[357335375,1744007523928,-608.44155771,0.00068493,120]
[357335376,1744007523938,-608.44155771,0.00068493,120]
[357335377,1744007523947,-608.44155771,0.00068493,120]
[357335378,1744007523957,-608.44155771,0.00068493,120]
[357335379,1744007523967,-608.44155771,0.00068493,120]
[357335380,1744007523977,-608.44155771,0.00068493,120]
[357335381,1744007523988,-608.44155771,0.00068493,120]
[357335382,1744007523997,-608.44155771,0.00068493,120]
[357335383,1744007524007,-608.44155771,0.00068493,120]
[357335384,1744007524017,-608.44155771,0.00068493,120]
[357335385,1744007524027,-608.44155771,0.00068493,120]
[357335386,1744007524036,-608.44155771,0.00068493,120]
[357335387,1744007524046,-608.44155771,0.00068493,120]
[357335388,1744007524056,-608.44155771,0.00068493,120]
[357335389,1744007524065,-608.44155771,0.00068493,120]
[357335390,1744007524079,-608.44155771,0.00068493,120]
[357335391,1744007524089,-608.44155771,0.00068493,120]
[357335392,1744007524099,-608.44155771,0.00068493,120]
[357335393,1744007524108,-608.44155771,0.00068493,120]
[357335394,1744007524118,-608.44,0.00068493,120]
[357335395,1744007524128,-1000.0,0.000688,90]
[357335396,1744007524138,-3000.0,0.00069,120]
[357335397,1744007524147,-3000.0,0.0006901,120]
[357335398,1744007524157,-3000.0,0.0006902,120]
[357335399,1744007524167,-3000.0,0.0006903,120]
[357335400,1744007524177,-4168.138403,0.0006904,120]
[357335401,1744007524187,-151.0,0.00069589,120]
[357335402,1744007524197,-401.0,0.00069721,120]
[357335403,1744007524207,-2000.0,0.0007,120]
[357335404,1744007524216,-200.0,0.0007,120]
[357335405,1744007524226,-1325.87669137,0.0007,120]
[357335406,1744007524235,-4500.0,0.00071233,14]
[357335407,1744007524245,-2285.78784954,0.00072036,15]
[357335408,1744007524254,-202.754,0.00072721,120]
[357335409,1744007524264,-688.251929,0.00073136,120]
[357335410,1744007524274,-200.0,0.00074,120]
[357335411,1744007524284,-1000.0,0.00074399,120]
[357335412,1744007524293,-11694.01259843,0.00075444,120]
[357335413,1744007524303,-5000.0,0.00076712,14]
[357335414,1744007524313,-688.251929,0.00078457,120]
[357335415,1744007524326,-670.81808438,0.0008,50]
[357335416,1744007524335,-200.0,0.0008,120]
[357335417,1744007524345,-500.0,0.0008,100]
[357335418,1744007524355,-1796.459822,0.0008,120]
[357335419,1744007524366,-151.0,0.0008189,120]
[357335420,1744007524376,-2500.0,0.00082108,2]
[357335421,1744007524386,-2500.0,0.00082108,15]
[357335422,1744007524395,-2500.0,0.00082108,15]
[357335423,1744007524405,-999.0,0.00082164,120]
[357335424,1744007524414,-944.65033655,0.00082164,120]
[357335425,1744007524424,-500.0,0.00082191,7]
[357335426,1744007524433,-500.0,0.00082191,7]
[357335427,1744007524443,-500.0,0.00082191,7]
[357335428,1744007524452,-500.0,0.00082191,7]
[357335429,1744007524461,-638.80558796,0.00082191,7]
[357335430,1744007524471,-5500.0,0.00082192,14]
[357335431,1744007524481,-688.251929,0.00083778,120]
[357335432,1744007524491,-157.809,0.00086016,120]
[357335433,1744007524501,-6000.0,0.00087671,14]
[357335434,1744007524511,-1043.21932498,0.00088,120]
[357335435,1744007524521,-258491.77609201,0.000888,120]
[357335436,1744007524530,-2138.26934624,0.0008888,120]
[357335437,1744007524540,-3874.5959449,0.00089,120]
[357335438,1744007524551,-688.251929,0.00089099,120]
[357335439,1744007524561,-600.0,0.0009,120]
[357335440,1744007524576,-706.85,0.0009,60]
[357335441,1744007524585,-2000.0,0.0009,120]
[357335442,1744007524595,-1000.0,0.0009,120]
[357335443,1744007524605,-200.0,0.0009,120]
[357335444,1744007524615,-2229.53,0.000903,30]
[357335445,1744007524624,-40000.0,0.0009263,120]
[357335446,1744007524634,-6500.0,0.00093151,14]
[357335447,1744007524644,-151.0,0.00094192,120]
[357335448,1744007524654,-688.251929,0.0009442,120]
[357335449,1744007524664,-144229.19832934,0.0009444,30]
[357335450,1744007524874,-892.36,0.0009444,30]
[357335451,1744007524886,-4094.61535577,0.0009444,30]
[357335452,1744007524899,-9331.96951495,0.0009444,30]
[357335453,1744007525145,-0.00062228,0.00038356,7]
[357335454,1744007525157,-456.23147452,0.00038356,7]
[357335455,1744007525166,-305.64073474,0.00038356,7]
[357335456,1744007525176,-500.0,0.00038356,7]
[357335457,1744007525185,-500.0,0.00038356,7]
[357335458,1744007525194,-500.0,0.0003863,7]
[357335459,1744007525204,-3596.12,0.0003863,7]
[357335460,1744007525213,-174.15817345,0.0003863,7]
[357335461,1744007525224,-325.84182655,0.0003863,7]
[357335462,1744007525234,-246.48317345,0.00038904,7]
[357335463,1744007525245,-253.51682655,0.00038904,7]
[357335464,1744007525254,-736.64335952,0.00038904,7]
[357335465,1744007525353,-2859.47664048,0.00038904,7]
[357335466,1744007525363,-500.0,0.00038904,7]
[357335467,1744007525372,-500.0,0.00039178,7]
[357335468,1744007525382,-3596.12,0.00039178,7]
[357335469,1744007525391,-500.0,0.00039178,7]
[357335470,1744007525400,-3596.12,0.00039452,7]
[357335471,1744007525409,-500.0,0.00039452,7]
[357335472,1744007525418,-500.0,0.00039452,7]
[357335473,1744007525427,-3596.12,0.00039726,7]
[357335474,1744007525436,-500.0,0.00039726,7]
[357335475,1744007525446,-500.0,0.00039726,7]
[357335476,1744007525455,-942.61639548,0.0004,7]
[357335477,1744007525471,-2653.50360452,0.0004,7]
[357335478,1744007525480,-500.0,0.0004,7]
[357335479,1744007525489,-500.0,0.0004,7]
[357335480,1744007525499,-3596.12,0.00040273,7]
[357335481,1744007525508,-500.0,0.00040273,7]
[357335482,1744007525517,-500.0,0.00040273,7]
[357335483,1744007525526,-584.12855723,0.00040547,7]
[357335484,1744007525568,-308.66427384,0.00040547,7]
[357335485,1744007525585,-2703.32716893,0.00040547,7]
[357335486,1744007525594,-500.0,0.00040547,7]
[357335487,1744007525604,-500.0,0.00040547,7]
[357335488,1744007525613,-3596.12,0.00040821,7]
[357335489,1744007525622,-500.0,0.00040821,7]
[357335490,1744007525631,-1512.82915152,0.00041095,7]
[357335491,1744007525823,-22685.74623202,0.00037972,2]
[357335492,1744007525832,-500.0,0.00038356,7]
[357335493,1744007525842,-500.0,0.00038356,7]
[357335494,1744007525851,-500.0,0.0003863,7]
[357335495,1744007525860,-500.0,0.0003863,7]
[357335496,1744007525869,-2083.29084848,0.00041095,7]
[357335497,1744007525879,-3596.12,0.00041369,7]
[357335498,1744007525889,-3596.12,0.00041643,7]
[357335499,1744007525899,-3596.12,0.00041917,7]
[357335500,1744007525908,-477.18806209,0.00042191,7]
[357335501,1744007525917,-3596.12,0.00042191,7]
[357335502,1744007525928,-3596.12,0.00042465,7]
[357335503,1744007525938,-3596.12,0.00042739,7]
[357335504,1744007525948,-3596.12,0.00043013,7]
[357335505,1744007525958,-3596.12,0.00043287,7]
[357335506,1744007525967,-3596.12,0.00043561,7]
[357335507,1744007525977,-3596.12,0.00043835,120]
[357335508,1744007525987,-3596.12,0.00044109,120]
[357335509,1744007525997,-3596.12,0.00044383,120]
[357335510,1744007526007,-3596.24,0.00044657,120]
[357335511,1744007526171,-78777.27,0.00054795,10]
[357335512,1744007526181,-25781.30062231,0.0009444,30]
[357335518,1744008145070,1940.02601253,0.00046488,30]
[357335525,1744008209604,436.8,0.00046488,30]
[357335527,1744008228753,500.0,0.00046488,30]
[357335549,1744008313017,287.05224056,0.00046495,30]
[357335554,1744008402273,500.0,0.00046495,120]
[357335555,1744008515816,500.0,0.00046495,120]
[357335556,1744008516142,282.00000032,0.00046495,120]
[357335649,1744008633760,-476.48135112,0.00022,2]
[357335650,1744008633774,-254.03798579,0.00022,2]
[357335651,1744008633787,-381.67125007,0.00022,2]
[357335652,1744008633913,-159.79249654,0.00022,2]
[357335653,1744008633924,-679.82715696,0.00024655,2]
[357335654,1744008633935,-153.0,0.00025664,2]
[357335655,1744008633945,-153.0,0.00025664,2]
[357335656,1744008633955,-153.0,0.00025664,2]
[357335657,1744008633970,-153.0,0.00025664,2]
[357335658,1744008633980,-153.0,0.0002574,2]
[357335659,1744008633990,-715.02941719,0.000269,7]
[357335660,1744008634000,-656.29837822,0.000281,2]
[357335661,1744008634010,-200.0,0.000314,120]
[357335662,1744008634020,-500.0,0.0003205,5]
[357335663,1744008634030,-2859.04092127,0.0003205,2]
[357335664,1744008634041,-160.0,0.00032224,2]
[357335665,1744008634052,-400.0,0.00032272,2]
[357335666,1744008634062,-160.41809467,0.0003246,5]
[357335667,1744008634075,-500.0,0.0003246,5]
[357335668,1744008634084,-500.0,0.00032467,5]
[357335669,1744008634094,-451.40445369,0.00034059,7]
[357335670,1744008634104,-232.73458102,0.00034059,7]
[357335671,1744008634115,-500.0,0.00034059,2]
[357335672,1744008634124,-500.0,0.00034059,2]
[357335673,1744008634135,-500.0,0.00034059,2]
[357335674,1744008634146,-500.0,0.00034059,2]
[357335675,1744008634158,-500.0,0.00034059,2]
[357335676,1744008634169,-500.0,0.00034059,2]
[357335677,1744008634179,-500.0,0.00034059,2]
[357335678,1744008634194,-500.0,0.00034059,2]
[357335679,1744008634209,-500.0,0.00034059,2]
[357335680,1744008634220,-500.0,0.00034059,2]
[357335681,1744008634231,-159.43960043,0.00034059,2]
[357335682,1744008634242,-500.0,0.00034059,2]
[357335683,1744008634253,-500.0,0.00034059,2]
[357335684,1744008634263,-25456.76166954,0.0003406,2]
[357335685,1744008635361,-3871.21262988,0.0003406,2]
[357335754,1744008638664,-2447.99313793,0.0003406,2]
[357335755,1744008638752,-437.67999,0.0003406,2]
[357335756,1744008638765,-7987.76282855,0.0003406,2]
[357335757,1744008638775,-500.0,0.00034073,2]
[357335758,1744008638784,-500.0,0.00034073,5]
[357335759,1744008638794,-500.0,0.00034073,5]
[357335760,1744008638803,-500.0,0.00034073,5]
[357335761,1744008638812,-500.0,0.00034073,5]
[357335762,1744008638822,-500.0,0.00034073,5]
[357335763,1744008638832,-500.0,0.00034073,5]
[357335764,1744008638842,-500.0,0.00034073,5]
[357335765,1744008638859,-301.71575181,0.00034073,5]
[357335767,1744008638877,-1801.470459,0.00034096,2]
[357335769,1744008638889,-560.0,0.00034701,2]
[357335770,1744008638898,-301.46551,0.00034777,2]
[357335771,1744008638908,-183.368106,0.00034834,120]
[357335772,1744008638917,-369.475117,0.0003589,2]
[357335773,1744008638926,-679.56509734,0.00036672,2]
[357335775,1744008638935,-987.10989545,0.00036675,7]
[357335776,1744008638945,-678.0,0.00037312,2]
[357335777,1744008638954,-1000.0,0.00037529,5]
[357335779,1744008638968,-1000.0,0.00037946,5]
[357335780,1744008638979,-274.42872995,0.00038,14]
[357335782,1744008638989,-7167.0,0.00038,2]
[357335783,1744008639000,-155.342,0.00038128,50]
[357335785,1744008639010,-158.04681373,0.00038256,2]
[357335787,1744008639023,-272.26,0.00038336,3]
[357335789,1744008639033,-816.78,0.00038336,3]
[357335792,1744008639053,-500.0,0.00038345,15]
[357335794,1744008639065,-212.50102741,0.00038345,15]
[357335797,1744008639078,-500.0,0.00038345,15]
[357335799,1744008639090,-500.0,0.00038345,15]
[357335801,1744008639100,-500.0,0.00038345,15]
[357335803,1744008639111,-287.60604487,0.00038345,15]
[357335805,1744008639122,-93109.0690923,0.00038346,3]
[357335807,1744008639134,-2194.01806869,0.00038346,3]
[357335809,1744008639144,-500.0,0.00038356,7]
[357335811,1744008639156,-500.0,0.00038356,7]
[357335813,1744008639167,-500.0,0.00038356,7]
[357335815,1744008639177,-500.0,0.00038356,7]
[357335817,1744008639187,-500.0,0.00038356,7]
[357335819,1744008639197,-324.25547983,0.00038356,7]
[357335821,1744008639207,-500.0,0.00038356,7]
[357335823,1744008639225,-500.0,0.00038356,7]
[357335826,1744008639235,-500.0,0.00038356,7]
[357335828,1744008639246,-500.0,0.00038356,7]
[357335830,1744008639256,-500.0,0.00038356,7]
[357335832,1744008639266,-500.0,0.00038356,7]
[357335834,1744008639276,-500.0,0.00038356,7]
[357335836,1744008639286,-500.0,0.00038356,7]
[357335838,1744008639296,-500.0,0.00038356,7]
[357335840,1744008639307,-500.0,0.00038356,7]
[357335842,1744008639317,-500.0,0.00038356,7]
[357335844,1744008639327,-500.0,0.00038356,7]
[357335846,1744008639338,-500.0,0.00038356,7]
[357335848,1744008639348,-500.0,0.00038356,7]
[357335850,1744008639358,-500.0,0.00038356,7]
[357335852,1744008639369,-500.0,0.00038356,7]
[357335854,1744008639381,-500.0,0.00038356,7]
[357335856,1744008639391,-500.0,0.00038356,7]
[357335858,1744008639402,-500.0,0.00038356,7]
[357335860,1744008639413,-500.0,0.00038356,7]
[357335862,1744008639423,-210.35762485,0.00038356,7]
[357335864,1744008639433,-500.0,0.00038356,7]
[357335866,1744008639443,-500.0,0.00038356,7]
[357335868,1744008639454,-505.81,0.00038356,7]
[357335870,1744008639470,-535.53,0.00038356,7]
[357335873,1744008639480,-500.0,0.00038356,7]
[357335874,1744008639491,-556.42062209,0.00038356,7]
[357335876,1744008639501,-500.0,0.00038356,7]
[357335880,1744008639511,-500.0,0.00038356,7]
[357335882,1744008639521,-500.0,0.00038356,7]
[357335883,1744008639531,-540.93,0.00038356,7]
[357335885,1744008639542,-500.0,0.00038356,7]
[357335887,1744008639552,-500.0,0.00038356,7]
[357335889,1744008639562,-500.0,0.00038356,7]
[357335891,1744008639572,-500.0,0.00038356,7]
[357335893,1744008639583,-500.0,0.00038356,7]
[357335895,1744008639592,-500.0,0.00038356,7]
[357335897,1744008639602,-500.0,0.00038356,7]
[357335899,1744008639612,-500.0,0.00038356,7]
[357335901,1744008639622,-504.07872391,0.00038356,7]
[357335903,1744008639632,-500.0,0.00038356,7]
[357335905,1744008639641,-546.01,0.00038356,7]
[357335907,1744008639651,-500.0,0.00038356,7]
[357335909,1744008639661,-500.0,0.00038356,7]
[357335911,1744008639670,-500.0,0.00038356,7]
[357335914,1744008639684,-500.0,0.00038356,7]
[357335916,1744008639694,-500.0,0.00038356,7]
[357335918,1744008639704,-527.88662227,0.00038356,7]
[357335920,1744008639718,-1365.37,0.00038356,2]
[357335922,1744008639728,-380.11324213,0.00038356,7]
[357335925,1744008639738,-501.50476669,0.00038356,2]
[357335927,1744008639748,-180.44570849,0.00038356,7]
[357335929,1744008639759,-1000.0,0.00038356,7]
[357335952,1744008639769,-512.0617169,0.00038356,7]
[357335954,1744008640008,-500.0,0.00038356,7]
[357335956,1744008640019,-1000.0,0.00038356,7]
[357335958,1744008640029,-500.0,0.00038356,7]
[357335960,1744008640041,-500.0,0.00038356,7]
[357335962,1744008640052,-500.0,0.00038356,7]
[357335964,1744008640061,-500.0,0.00038356,7]
[357335966,1744008640074,-500.0,0.00038356,7]
[357335968,1744008640084,-500.0,0.00038356,7]
[357335970,1744008640095,-500.0,0.00038356,7]
[357335972,1744008640104,-500.0,0.00038356,7]
[357335974,1744008640114,-500.0,0.00038356,7]
[357335976,1744008640124,-500.0,0.00038356,7]
[357335978,1744008640134,-500.0,0.00038356,7]
[357335980,1744008640143,-500.0,0.00038356,7]
[357335982,1744008640153,-500.0,0.00038356,7]
[357335984,1744008640163,-500.0,0.00038356,7]
[357335986,1744008640173,-500.0,0.00038356,7]
[357335988,1744008640183,-500.0,0.00038356,7]
[357335990,1744008640192,-500.0,0.00038356,7]
[357335992,1744008640202,-500.0,0.00038356,7]
[357335994,1744008640217,-500.0,0.00038356,7]
[357335996,1744008640227,-500.0,0.00038356,7]
[357335998,1744008640236,-500.0,0.00038356,7]
[357336000,1744008640246,-500.0,0.00038356,7]
[357336002,1744008640255,-500.0,0.00038356,7]
[357336004,1744008640264,-500.0,0.00038356,7]
[357336006,1744008640274,-500.0,0.00038356,7]
[357336008,1744008640284,-500.0,0.00038356,7]
[357336010,1744008640293,-500.0,0.00038356,7]
[357336012,1744008640303,-500.0,0.00038356,7]
[357336014,1744008640312,-500.0,0.00038356,7]
[357336016,1744008640322,-500.0,0.00038356,7]
[357336018,1744008640331,-500.0,0.00038356,7]
[357336020,1744008640341,-500.0,0.00038356,7]
[357336022,1744008640350,-500.0,0.00038356,7]
[357336024,1744008640360,-500.0,0.00038356,7]
[357336026,1744008640370,-500.0,0.00038356,7]
[357336028,1744008640380,-500.0,0.00038356,7]
[357336030,1744008640390,-440.85,0.00038356,7]
[357336032,1744008640400,-500.0,0.00038356,7]
[357336034,1744008640409,-500.0,0.00038356,7]
[357336036,1744008640419,-500.0,0.00038356,7]
[357336038,1744008640429,-500.0,0.00038356,7]
[357336040,1744008640439,-500.0,0.00038356,7]
[357336042,1744008640448,-500.0,0.00038356,3]
[357336043,1744008640458,-500.0,0.00038356,7]
[357336045,1744008640472,-500.0,0.00038356,7]
[357336047,1744008640482,-523.68,0.00038356,7]
[357336050,1744008640494,-500.0,0.00038356,7]
[357336052,1744008640504,-500.0,0.00038356,7]
[357336054,1744008640514,-528.93,0.00038356,7]
[357336055,1744008640524,-500.0,0.00038356,7]
[357336057,1744008640534,-500.0,0.00038356,7]
[357336059,1744008640544,-500.0,0.00038356,7]
[357336061,1744008640553,-500.0,0.00038356,7]
[357336064,1744008640563,-500.0,0.00038356,7]
[357336066,1744008640573,-500.0,0.00038356,7]
[357336067,1744008640582,-500.0,0.00038356,7]
[357336069,1744008640591,-500.0,0.00038356,7]
[357336071,1744008640601,-500.0,0.00038356,7]
[357336073,1744008640611,-505.91086271,0.00038356,7]
[357336075,1744008640621,-527.03443778,0.00038356,7]
[357336077,1744008640630,-500.0,0.00038356,7]
[357336079,1744008640641,-633.15,0.00038356,7]
[357336081,1744008640650,-368.16067863,0.00038356,7]
[357336083,1744008640659,-500.0,0.00038356,7]
[357336085,1744008640670,-507.28130141,0.00038356,7]
[357336087,1744008640680,-500.0,0.00038356,7]
[357336089,1744008640690,-500.0,0.00038356,7]
[357336091,1744008640701,-500.0,0.00038356,7]
[357336093,1744008640714,-500.0,0.00038356,7]
[357336095,1744008640725,-502.47180161,0.00038356,7]
[357336097,1744008640735,-500.0,0.00038356,7]
[357336099,1744008640745,-500.0,0.00038356,7]
[357336101,1744008640754,-500.0,0.00038356,7]
[357336103,1744008640764,-500.0,0.00038356,7]
[357336105,1744008640775,-500.0,0.00038356,7]
[357336107,1744008640785,-500.0,0.00038356,7]
[357336109,1744008640795,-500.0,0.00038356,7]
[357336111,1744008640804,-528.76,0.00038356,7]
[357336113,1744008640814,-500.0,0.00038356,7]
[357336115,1744008640823,-500.0,0.00038356,7]
[357336117,1744008640834,-500.0,0.00038356,7]
[357336119,1744008640844,-500.0,0.00038356,7]
[357336121,1744008640854,-500.0,0.00038356,7]
[357336123,1744008640864,-500.0,0.00038356,7]
[357336125,1744008640874,-500.0,0.00038356,7]
[357336127,1744008640884,-500.0,0.00038356,7]
[357336129,1744008640894,-500.0,0.00038356,7]
[357336131,1744008640904,-500.0,0.00038356,7]
[357336133,1744008640914,-500.0,0.00038356,7]
[357336135,1744008640923,-500.0,0.00038356,7]
[357336137,1744008640933,-500.0,0.00038356,7]
[357336139,1744008640943,-500.0,0.00038356,7]
[357336141,1744008640953,-500.0,0.00038356,7]
[357336143,1744008640966,-500.0,0.00038356,7]
[357336144,1744008640976,-500.0,0.00038356,7]
[357336147,1744008640985,-534.91101437,0.00038356,7]
[357336150,1744008641008,-500.0,0.00038356,7]
[357336152,1744008641018,-500.0,0.00038356,7]
[357336154,1744008641028,-500.0,0.00038356,7]
[357336156,1744008641038,-500.0,0.00038356,7]
[357336158,1744008641057,-333.99251808,0.00038356,7]
[357336160,1744008641068,-500.0,0.00038356,7]
[357336162,1744008641078,-500.0,0.00038356,7]
[357336164,1744008641088,-265.65774636,0.00038356,7]
[357336166,1744008641098,-328.29207539,0.00038356,7]
[357336168,1744008641108,-500.0,0.00038356,7]
[357336170,1744008641119,-500.0,0.00038356,7]
[357336172,1744008641129,-1000.0,0.00038356,90]
[357336174,1744008641139,-500.0,0.00038356,7]
[357336176,1744008641149,-1127.28,0.00038356,7]
[357336178,1744008641160,-500.0,0.00038356,7]
[357336180,1744008641170,-500.0,0.00038356,7]
[357336182,1744008641181,-500.0,0.00038356,7]
[357336184,1744008641191,-500.0,0.00038356,7]
[357336186,1744008641201,-500.0,0.00038356,7]
[357336188,1744008641216,-500.0,0.00038356,7]
[357336190,1744008641227,-500.0,0.00038356,7]
[357336192,1744008641236,-500.0,0.00038356,7]
[357336194,1744008641246,-500.0,0.00038356,7]
[357336196,1744008641256,-500.0,0.00038356,7]
[357336198,1744008641266,-500.0,0.00038356,7]
[357336200,1744008641276,-500.0,0.00038356,7]
[357336202,1744008641287,-511.1279113,0.00038356,7]
[357336204,1744008641297,-500.0,0.00038356,7]
[357336206,1744008641307,-571.74254545,0.00038356,7]
[357336208,1744008641317,-500.0,0.00038356,7]
[357336210,1744008641326,-500.0,0.00038356,7]
[357336212,1744008641336,-500.0,0.00038356,7]
[357336214,1744008641345,-593.13,0.00038356,7]
[357336216,1744008641355,-500.0,0.00038356,7]
[357336218,1744008641364,-200.0,0.00038356,7]
[357336220,1744008641375,-500.0,0.00038356,7]
[357336222,1744008641384,-500.0,0.00038356,7]
[357336224,1744008641394,-500.0,0.00038356,7]
[357336226,1744008641404,-500.0,0.00038356,7]
[357336228,1744008641414,-500.0,0.00038356,7]
[357336230,1744008641423,-500.0,0.00038356,7]
[357336232,1744008641433,-538.22565554,0.00038356,7]
[357336234,1744008641442,-500.0,0.00038356,7]